Body Name,Body,Transaction Date,Value,Supplier,Description,Purchase Type,Cost Center,Department,Section
South Ribble Council,http://Statistics.Data.gov.uk\Doc\Local Authority\30UN,12/07/2022,597.90,Travelodge Chorley,NAME REDACTED Travelodge Chorley 12/07/2022-22/07/2022 200 paid on NAME REDACTED card 12/07/2022 Remainder 597.90 paid on NAME REDACTED card 13/07/2022,Accomodation,124050,COMU-Communities,JBC-Homelessness
South Ribble Council,http://Statistics.Data.gov.uk\Doc\Local Authority\30UN,14/07/2022,137.00,Premier Inn Chorley North PR6 8AB,NAME REDACTED 1 night at Premier Inn Chorley North PR6 8AB 14/07/2022-15/07/2022,Accomodation,124050,COMU-Communities,JBC-Homelessness
South Ribble Council,http://Statistics.Data.gov.uk\Doc\Local Authority\30UN,21/07/2022,565.50,Premier Inn Preston South PR5 6BZ,NAME REDACTED placement Premier Inn Preston South PR5 6BZ 21/07/2022-28/07/2022,Accomodation,124050,COMU-Communities,JBC-Homelessness
South Ribble Council,http://Statistics.Data.gov.uk\Doc\Local Authority\30UN,25/07/2022,201.92,Travelodge Preston Central PR1 5NX,NAME REDACTED Travelodge PR1 5NX room 1 of 2 25/07/2022-28/07/2022,Accomodation,124050,COMU-Communities,JBC-Homelessness
South Ribble Council,http://Statistics.Data.gov.uk\Doc\Local Authority\30UN,25/07/2022,201.92,Travelodge Preston Central PR1 5NX,NAME REDACTED Travelodge PR1 5NX room 2 of 2 25/07/2022-28/07/2022,Accomodation,124050,COMU-Communities,JBC-Homelessness
South Ribble Council,http://Statistics.Data.gov.uk\Doc\Local Authority\30UN,25/07/2022,275.36,Travelodge Chorley,NAME REDACTED Travelodge Chorley 25/07/2022-28/07/2022,Accomodation,124050,COMU-Communities,JBC-Homelessness
South Ribble Council,http://Statistics.Data.gov.uk\Doc\Local Authority\30UN,28/07/2022,363.80,Premier Inn PR1 2AB,NAME REDACTED Premier Inn PR1 2AB 28.07.2022-02.08.2022 NAME REDACTED,Accomodation,124250,COMU-Communities,JBC-Homelessness
South Ribble Council,http://Statistics.Data.gov.uk\Doc\Local Authority\30UN,28/07/2022,384.48,Travelodge Preston Chorley PR6 7JB,NAME REDACTED Travelodge Preston Chorley PR6 7JB 28.07.22 - 02.08.22 NAME REDACTED,Accomodation,124050,COMU-Communities,JBC-Homelessness
South Ribble Council,http://Statistics.Data.gov.uk\Doc\Local Authority\30UN,28/07/2022,768.97,Travelodge Preston Chorley PR6 7JB,NAME REDACTED Travelodge Preston Chorley PR6 7JB x 2 rooms 28.07.22 - 02.08.22 NAME REDACTED,Accomodation,124050,COMU-Communities,JBC-Homelessness
South Ribble Council,http://Statistics.Data.gov.uk\Doc\Local Authority\30UN,02/08/2022,-80.00,ibis Preston North PR3 5JE,refund for a placement not needed at ibis Preston North on 02.08.22,Refund,124250,COMU-Communities,JBC-Homelessness
South Ribble Council,http://Statistics.Data.gov.uk\Doc\Local Authority\30UN,02/08/2022,160.00,ibis Preston North PR3 5JE,"Payment for two placements (same hotel, same night): NAME REDACTED ibis Preston North PR3 5JE 02.08.22 - 03.08.22 NAME REDACTED and NAME REDACTED ibis Preston North PR3 5JE 02.08.22 - 03.08.22 NAME REDACTED",Accomodation,124250,COMU-Communities,JBC-Homelessness
South Ribble Council,http://Statistics.Data.gov.uk\Doc\Local Authority\30UN,02/08/2022,204.85,Premier Inn PR6 8AB,NAME REDACTED Premier Inn Chorley PR6 8AB 02.08.2022-05.08.2022 NAME REDACTED,Accomodation,124250,COMU-Communities,JBC-Homelessness
South Ribble Council,http://Statistics.Data.gov.uk\Doc\Local Authority\30UN,02/08/2022,225.97,Travelodge PR1 5NX,NAME REDACTED Travelodge PR1 5NX 02.08.2022-05.08.2022 NAME REDACTED,Accomodation,124250,COMU-Communities,JBC-Homelessness
South Ribble Council,http://Statistics.Data.gov.uk\Doc\Local Authority\30UN,02/08/2022,235.00,Travelodge PR1 5NX,NAME REDACTED Travelodge PR1 5NX 02.08.2022-05.08.2022 NAME REDACTED,Accomodation,124250,COMU-Communities,JBC-Homelessness
South Ribble Council,http://Statistics.Data.gov.uk\Doc\Local Authority\30UN,04/08/2022,62.20,Travelodge PR6 7JB,NAME REDACTED Travelodge Chorley 04.08.2022-05.08.2022 NAME REDACTED,Accomodation,124250,COMU-Communities,JBC-Homelessness
South Ribble Council,http://Statistics.Data.gov.uk\Doc\Local Authority\30UN,08/08/2022,69.70,Premier Inn PR5 6BZ,NAME REDACTED Premier Inn PR5 6BZ 08.08.2022-09.08.2022 NAME REDACTED,Accomodation,124250,COMU-Communities,JBC-Homelessness
South Ribble Council,http://Statistics.Data.gov.uk\Doc\Local Authority\30UN,08/08/2022,183.57,Travelodge PR6 7JB,NAME REDACTED Travelodge Chorley 08.08.2022-10.08.2022 NAME REDACTED,Accomodation,124250,COMU-Communities,JBC-Homelessness
South Ribble Council,http://Statistics.Data.gov.uk\Doc\Local Authority\30UN,08/08/2022,326.15,Premier Inn PR1 2AB,NAME REDACTED Premier Inn Preston Central 08.08.2022-12.08.2022 NAME REDACTED,Accomodation,124250,COMU-Communities,JBC-Homelessness
South Ribble Council,http://Statistics.Data.gov.uk\Doc\Local Authority\30UN,08/08/2022,576.30,Premier Inn PR1 2AB,NAME REDACTED Premier Inn PR1 2AB 08.08.2022-12.08.2022 NAME REDACTED,Accomodation,124250,COMU-Communities,JBC-Homelessness
South Ribble Council,http://Statistics.Data.gov.uk\Doc\Local Authority\30UN,09/08/2022,86.70,Premier Inn PR5 6BZ,NAME REDACTED Premier Inn PR5 6BZ 09.08.2022-10.08.2022 NAME REDACTED,Accomodation,124250,COMU-Communities,JBC-Homelessness
South Ribble Council,http://Statistics.Data.gov.uk\Doc\Local Authority\30UN,09/08/2022,262.07,Travelodge PR1 5NX,NAME REDACTED Travelodge Preston central 09.08.2022-12.08.2022 NAME REDACTED,Accomodation,124250,COMU-Communities,JBC-Homelessness
South Ribble Council,http://Statistics.Data.gov.uk\Doc\Local Authority\30UN,15/08/2022,142.77,Travelodge PR6 7JB,NAME REDACTED Travelodge Chorley 15.08.2022-17.08.2022 NAME REDACTED,Accomodation,124250,COMU-Communities,JBC-Homelessness
South Ribble Council,http://Statistics.Data.gov.uk\Doc\Local Authority\30UN,18/08/2022,66.28,Travelodge Preston Chorley PR6 7JB,NAME REDACTED Travelodge Preston Chorley PR6 7JB 18.08.22 - 19.08.22 NAME REDACTED,Accomodation,124250,COMU-Communities,JBC-Homelessness
South Ribble Council,http://Statistics.Data.gov.uk\Doc\Local Authority\30UN,18/08/2022,68.85,Premier Inn PR1 2AB,NAME REDACTED Premier Inn PR1 2AB 18.08.2022-19.08.2022 NAME REDACTED,Accomodation,124250,COMU-Communities,JBC-Homelessness
South Ribble Council,http://Statistics.Data.gov.uk\Doc\Local Authority\30UN,19/08/2022,211.10,Travelodge PR1 5NX,NAME REDACTED Travelodge PR1 5NX 19.08.2022-22.08.2022 NAME REDACTED,Accomodation,124250,COMU-Communities,JBC-Homelessness
South Ribble Council,http://Statistics.Data.gov.uk\Doc\Local Authority\30UN,19/08/2022,216.75,Premier Inn PR5 6BZ,NAME REDACTED Premier Inn PR5 6BZ 19.08.2022-22.08.2022 NAME REDACTED,Accomodation,124250,COMU-Communities,JBC-Homelessness
South Ribble Council,http://Statistics.Data.gov.uk\Doc\Local Authority\30UN,19/08/2022,216.75,Premier Inn PR5 6BZ,NAME REDACTED Premier Inn PR5 6BZ 19.08.2022-22.08.2022 NAME REDACTED,Accomodation,124250,COMU-Communities,JBC-Homelessness
South Ribble Council,http://Statistics.Data.gov.uk\Doc\Local Authority\30UN,23/08/2022,-100.00,Travelodge PR6 7JB,correction NAME REDACTED amount keyed as 396.36 should be 296.36 100.00 accounting entry to clear,Accomodation,124250,COMU-Communities,JBC-Homelessness
South Ribble Council,http://Statistics.Data.gov.uk\Doc\Local Authority\30UN,23/08/2022,78.20,Premier Inn PR5 6BZ,NAME REDACTED Premier Inn PR5 6BZ 23.08.2022 NAME REDACTED,Accomodation,124250,COMU-Communities,JBC-Homelessness
South Ribble Council,http://Statistics.Data.gov.uk\Doc\Local Authority\30UN,23/08/2022,78.20,Premier Inn PR1 2AB,NAME REDACTED Premier Inn PR1 2AB 23.08.2022 NAME REDACTED,Accomodation,124250,COMU-Communities,JBC-Homelessness
South Ribble Council,http://Statistics.Data.gov.uk\Doc\Local Authority\30UN,23/08/2022,78.20,Premier Inn PR1 2AB,NAME REDACTED Premier Inn PR1 2AB 23.08.2022 NAME REDACTED,Accomodation,124250,COMU-Communities,JBC-Homelessness
South Ribble Council,http://Statistics.Data.gov.uk\Doc\Local Authority\30UN,23/08/2022,284.97,Travelodge PR6 7JB,NAME REDACTED room2 Travelodge PR6 7JB 23.08.2022-26.08.2022 NAME REDACTED,Accomodation,124250,COMU-Communities,JBC-Homelessness
South Ribble Council,http://Statistics.Data.gov.uk\Doc\Local Authority\30UN,23/08/2022,396.36,Travelodge PR6 7JB,NAME REDACTED room1 Travelodge PR6 7JB 23.08.2022-26.08.2022 NAME REDACTED,Accomodation,124250,COMU-Communities,JBC-Homelessness
South Ribble Council,http://Statistics.Data.gov.uk\Doc\Local Authority\30UN,24/08/2022,141.95,Premier Inn PR1 2AB,NAME REDACTED Premier Inn PR1 2AB 24.08.2022-26.08.2022 NAME REDACTED,Accomodation,124250,COMU-Communities,JBC-Homelessness
South Ribble Council,http://Statistics.Data.gov.uk\Doc\Local Authority\30UN,26/08/2022,164.19,Travelodge PR6 7JB,NAME REDACTED Travelodge PR6 7JB 26.08.2022-28.08.2022 NAME REDACTED,Accomodation,124250,COMU-Communities,JBC-Homelessness
South Ribble Council,http://Statistics.Data.gov.uk\Doc\Local Authority\30UN,30/08/2022,72.25,Premier Inn PR6 8AB,NAME REDACTED Premier Inn PR6 8AB 30.08.2022 NAME REDACTED,Accomodation,124250,COMU-Communities,JBC-Homelessness
South Ribble Council,http://Statistics.Data.gov.uk\Doc\Local Authority\30UN,02/09/2022,92.65,PInn PR5 6BZ,NAME REDACTED PInn PR5 6BZ 3.9.2022-4.9.2022 NAME REDACTED,Accomodation,124250,COMU-Communities,JBC-Homelessness
South Ribble Council,http://Statistics.Data.gov.uk\Doc\Local Authority\30UN,02/09/2022,210.80,P Inn PR5 6BZ,NAME REDACTED PInn PR5 6BZ 2.9.2022-5.9.2022 NAME REDACTED,Accomodation,124250,COMU-Communities,JBC-Homelessness
South Ribble Council,http://Statistics.Data.gov.uk\Doc\Local Authority\30UN,02/09/2022,284.53,Travelodge PR6 7JB,NAME REDACTED Travelodge Chorley PR6 7JB 2.9.2022-6.9.2022 NAME REDACTED,Accomodation,124250,COMU-Communities,JBC-Homelessness
South Ribble Council,http://Statistics.Data.gov.uk\Doc\Local Authority\30UN,02/09/2022,310.40,HInn Exp PR5 6BZ,NAME REDACTED HIEx PR5 6BZ 2.9.2022-6.9.2022 NAME REDACTED,Accomodation,124250,COMU-Communities,JBC-Homelessness
South Ribble Council,http://Statistics.Data.gov.uk\Doc\Local Authority\30UN,05/09/2022,54.04,Travelodge PR6 7JB,NAME REDACTED Travelodge Chorely PR6 7JB 5.9.2022-6.9.2022 NAME REDACTED,Accomodation,124250,COMU-Communities,JBC-Homelessness
South Ribble Council,http://Statistics.Data.gov.uk\Doc\Local Authority\30UN,05/09/2022,66.28,Travelodge PR6 7JB,NAME REDACTED Travelodge Chorely PR6 7JB 5.9.2022-6.9.2022 NAME REDACTED,Accomodation,124250,COMU-Communities,JBC-Homelessness
South Ribble Council,http://Statistics.Data.gov.uk\Doc\Local Authority\30UN,05/09/2022,72.25,Premier Inn PR1 2AB,NAME REDACTED PInn PR1 2AB 5.9.2022-6.9.2022 NAME REDACTED,Accomodation,124250,COMU-Communities,JBC-Homelessness
South Ribble Council,http://Statistics.Data.gov.uk\Doc\Local Authority\30UN,06/09/2022,71.38,Travelodge PR6 7JB,NAME REDACTED Travelodge PR6 7JB 6.9.2022-7.9.2022 NAME REDACTED,Accomodation,124250,COMU-Communities,JBC-Homelessness
South Ribble Council,http://Statistics.Data.gov.uk\Doc\Local Authority\30UN,08/09/2022,274.75,Knowledge Exchange Group,"Knowledge Exchange Group � training for officer in SRBC Housing Options, REDACTED, regarding domestic abuse, total cost 274.75",Online Purchase,124050,COMU-Communities,JBC-Homelessness
South Ribble Council,http://Statistics.Data.gov.uk\Doc\Local Authority\30UN,08/09/2022,500.00,Hiliday Inn PR1 3AU,NAME REDACTED Holiday Inn 7 nights fixed price 8-13.9.2022 PR1 3AU,Accomodation,124250,COMU-Communities,JBC-Homelessness
South Ribble Council,http://Statistics.Data.gov.uk\Doc\Local Authority\30UN,12/09/2022,101.98,Travelodge Chorley PR6 7JB,NAME REDACTED Travelodge Chorley PR6 7JB 12.9.2022 NAME REDACTED,Accomodation,124250,COMU-Communities,JBC-Homelessness
South Ribble Council,http://Statistics.Data.gov.uk\Doc\Local Authority\30UN,12/09/2022,416.50,Hotel at Booking.com,NAME REDACTED Preston Stanley 1 Bed Flat 3b 13.09.22 - 20.09.22 NAME REDACTED,Accomodation,124050,COMU-Communities,JBC-Homelessness
South Ribble Council,http://Statistics.Data.gov.uk\Doc\Local Authority\30UN,12/09/2022,618.03,Travelodge PR6 7JB,NAME REDACTED Travelodge Chorley PR6 7JB 12-19.9.22 NAME REDACTED,Accomodation,124250,COMU-Communities,JBC-Homelessness
South Ribble Council,http://Statistics.Data.gov.uk\Doc\Local Authority\30UN,13/09/2022,101.98,Travelodge chorley PR6 7JB,NAME REDACTED Travelodge Chorley PR6 7JB 13.9.2022 NAME REDACTED,Accomodation,124250,COMU-Communities,JBC-Homelessness
South Ribble Council,http://Statistics.Data.gov.uk\Doc\Local Authority\30UN,13/09/2022,101.98,Travelodge Chorley PR6 7JB,NAME REDACTED Travelodge PR6 7JB 13.9.2022 NAME REDACTED,Accomodation,124250,COMU-Communities,JBC-Homelessness
South Ribble Council,http://Statistics.Data.gov.uk\Doc\Local Authority\30UN,13/09/2022,495.00,IBIS Preston North PR3 5JE,NAME REDACTED IBIS Preston North PR3 5JE 13.9.2022-20.9.2022 NAME REDACTED,Accomodation,124250,COMU-Communities,JBC-Homelessness
South Ribble Council,http://Statistics.Data.gov.uk\Doc\Local Authority\30UN,13/09/2022,507.88,Travelodge Chorley PR6 7JB,NAME REDACTED Travelodge Chorley PR6 7JB 13.9.2022-20.9.2022 NAME REDACTED,Accomodation,124250,COMU-Communities,JBC-Homelessness
South Ribble Council,http://Statistics.Data.gov.uk\Doc\Local Authority\30UN,14/09/2022,75.46,Travelodge Chorley PR6 7JB,NAME REDACTED Travelodge Chorley PR6 7JB 14.9.2022 NAME REDACTED,Accomodation,124250,COMU-Communities,JBC-Homelessness
South Ribble Council,http://Statistics.Data.gov.uk\Doc\Local Authority\30UN,14/09/2022,510.93,Travelodge Chorley PR6 7JB,NAME REDACTED Travelodge Chorley PR6 7JB 14.9.2022-21.9.2022 Room 1 NAME REDACTED,Accomodation,124250,COMU-Communities,JBC-Homelessness
South Ribble Council,http://Statistics.Data.gov.uk\Doc\Local Authority\30UN,14/09/2022,531.36,Travelodge Chorley PR6 7JB,NAME REDACTED Travelodge Chorley PR6 7JB 14.9.2022-21.9.2022 Room 2 NAME REDACTED,Accomodation,124250,COMU-Communities,JBC-Homelessness
South Ribble Council,http://Statistics.Data.gov.uk\Doc\Local Authority\30UN,15/09/2022,68.32,Travelodge Chorley PR6 7JB,NAME REDACTED Travelodge Chorley PR6 7JB 15.9.2022 NAME REDACTED,Accomodation,124250,COMU-Communities,JBC-Homelessness
South Ribble Council,http://Statistics.Data.gov.uk\Doc\Local Authority\30UN,23/09/2022,242.72,Travelodge chorley PR6 7JB,NAME REDACTED Travelodge Chorely PR6 7JB 23.9.2022-26.9.2022 NAME REDACTED,Accomodation,124250,COMU-Communities,JBC-Homelessness
South Ribble Council,http://Statistics.Data.gov.uk\Doc\Local Authority\30UN,06/07/2022,90.21,Holiday Inn Express PR5 8AA,NAME REDACTED Holiday Inn Express PR5 8AA 1 night 06/07/2022-07/07/2022,Accomodation,124250,COMU-Communities,JBC-Homelessness
South Ribble Council,http://Statistics.Data.gov.uk\Doc\Local Authority\30UN,06/07/2022,90.21,Holiday Inn Express,NAME REDACTED Holiday Inn Express twin room PR5 8AA 1 night 06/07/2022-07/07/2022,Accomodation,124050,COMU-Communities,JBC-Homelessness
South Ribble Council,http://Statistics.Data.gov.uk\Doc\Local Authority\30UN,07/07/2022,62.90,Premier Inn Preston South PR5 6BZ,NAME REDACTED 1 night Premier Inn Preston South PR5 6BZ 07/07/2022-08/07/2022,Accomodation,124250,COMU-Communities,JBC-Homelessness
South Ribble Council,http://Statistics.Data.gov.uk\Doc\Local Authority\30UN,07/07/2022,398.25,Travelodge Chorley,NAME REDACTED 5 nights Travelodge Chorley 07/07/2022-12/07/2022,Accomodation,124050,COMU-Communities,JBC-Homelessness
South Ribble Council,http://Statistics.Data.gov.uk\Doc\Local Authority\30UN,08/07/2022,197.20,Premier Inn Chorley North PR6 8AB,NAME REDACTED 3 nights Premier Inn Chorley North PR6 8AB 08/07/2022-11/07/2022,Accomodation,124250,COMU-Communities,JBC-Homelessness
South Ribble Council,http://Statistics.Data.gov.uk\Doc\Local Authority\30UN,08/07/2022,212.00,Premier Inn Chorley North PR6 8AB,NAME REDACTED 3 nights Premier Inn Chorley North PR6 8AB 08/07/2022-11/07/2022,Accomodation,124050,COMU-Communities,JBC-Homelessness
South Ribble Council,http://Statistics.Data.gov.uk\Doc\Local Authority\30UN,11/07/2022,50.98,Travelodge Chorley,NAME REDACTED 1 night Travelodge Chorley 11/07/2022-12/07/2022,Accomodation,124250,COMU-Communities,JBC-Homelessness
South Ribble Council,http://Statistics.Data.gov.uk\Doc\Local Authority\30UN,11/07/2022,54.99,Travelodge Chorley,NAME REDACTED room 2 of 2 Travelodge Chorley 11/07/2022-12/07/2022,Accomodation,124050,COMU-Communities,JBC-Homelessness
South Ribble Council,http://Statistics.Data.gov.uk\Doc\Local Authority\30UN,11/07/2022,57.18,Travelodge Chorley,NAME REDACTED room 1 of 2 Travelodge Chorley 11/07/2022-12/07/2022,Accomodation,124050,COMU-Communities,JBC-Homelessness
South Ribble Council,http://Statistics.Data.gov.uk\Doc\Local Authority\30UN,11/07/2022,88.72,Travelodge PR1 5NX,NAME REDACTED 1 night Travelodge PR1 5NX 11/07/2022-12/07/2022,Accomodation,124050,COMU-Communities,JBC-Homelessness
South Ribble Council,http://Statistics.Data.gov.uk\Doc\Local Authority\30UN,12/07/2022,200.00,Travelodge Chorley,NAME REDACTED Travelodge Chorley 12/07/2022-22/07/2022 200 paid on NAME REDACTED card,Accomodation,124050,COMU-Communities,JBC-Homelessness
South Ribble Council,http://Statistics.Data.gov.uk\Doc\Local Authority\30UN,19/07/2022,172.35,Travelodge Chorley,NAME REDACTED Travelodge Chorley 19/07/2022-21/07/2022,Accomodation,124050,COMU-Communities,JBC-Homelessness
South Ribble Council,http://Statistics.Data.gov.uk\Doc\Local Authority\30UN,19/07/2022,478.94,Travelodge Chorley,NAME REDACTED room 1 of 2 at Travelodge Chorley 19/07/2022-25/07/2022,Accomodation,124050,COMU-Communities,JBC-Homelessness
South Ribble Council,http://Statistics.Data.gov.uk\Doc\Local Authority\30UN,19/07/2022,488.51,Travelodge Chorley,NAME REDACTED Travelodge Chorley 19/07/2022-25/07/2022,Accomodation,124050,COMU-Communities,JBC-Homelessness
South Ribble Council,http://Statistics.Data.gov.uk\Doc\Local Authority\30UN,19/07/2022,498.09,Travelodge Chorley,NAME REDACTED room 2 of 2 at Travelodge Chorley 19/07/2022-25/07/2022,Accomodation,124050,COMU-Communities,JBC-Homelessness
South Ribble Council,http://Statistics.Data.gov.uk\Doc\Local Authority\30UN,05/08/2022,227.80,Premier InnPR1 2AB,NAME REDACTED Premier Inn Preston Central 05.08.2022-08.08.2022 NAME REDACTED,Accomodation,124250,COMU-Communities,JBC-Homelessness
South Ribble Council,http://Statistics.Data.gov.uk\Doc\Local Authority\30UN,05/08/2022,488.93,Travelodge PR1 5NX,NAME REDACTED Travelodge PR1 5NX 05.08.2022-12.08.2022 (2) NAME REDACTED,Accomodation,124250,COMU-Communities,JBC-Homelessness
South Ribble Council,http://Statistics.Data.gov.uk\Doc\Local Authority\30UN,05/08/2022,508.48,Travelodge PR1 5NX,NAME REDACTED Travelodge PR1 5NX 05.08.2022-12.08.2022 NAME REDACTED second room,Accomodation,124250,COMU-Communities,JBC-Homelessness
South Ribble Council,http://Statistics.Data.gov.uk\Doc\Local Authority\30UN,08/08/2022,4.00,SumUp Allied Taxis P,SumUp Allied Taxis Prestion - taxi fare for homeless client to get to their placement on 08/08/22,Travel,124250,COMU-Communities,JBC-Homelessness
South Ribble Council,http://Statistics.Data.gov.uk\Doc\Local Authority\30UN,08/08/2022,91.78,Travelodge PR6 7JB,NAME REDACTED Travelodge Chorley 08.08.2022-09.08.2022 NAME REDACTED,Accomodation,124250,COMU-Communities,JBC-Homelessness
South Ribble Council,http://Statistics.Data.gov.uk\Doc\Local Authority\30UN,10/08/2022,387.54,Travelodge PR6 7JB,NAME REDACTED Travelodge Chorley 10.08.2022-15.08.2022 NAME REDACTED,Accomodation,124250,COMU-Communities,JBC-Homelessness
South Ribble Council,http://Statistics.Data.gov.uk\Doc\Local Authority\30UN,12/08/2022,198.86,Travelodge PR1 5NX,NAME REDACTED Travelodge PR1 5NX 12.08.2022-15.08.2022 NAME REDACTED,Accomodation,124250,COMU-Communities,JBC-Homelessness
South Ribble Council,http://Statistics.Data.gov.uk\Doc\Local Authority\30UN,12/08/2022,199.88,Travelodge PR6 7JB,NAME REDACTED Travelodge Chorley 12.08.2022-15.08.2022 NAME REDACTED,Accomodation,124250,COMU-Communities,JBC-Homelessness
South Ribble Council,http://Statistics.Data.gov.uk\Doc\Local Authority\30UN,12/08/2022,333.80,Premier Inn PR1 2AB,NAME REDACTED Premier Inn PR1 2AB 12.08.2022-16.08.2022 NAME REDACTED,Accomodation,124250,COMU-Communities,JBC-Homelessness
South Ribble Council,http://Statistics.Data.gov.uk\Doc\Local Authority\30UN,12/08/2022,337.97,Travelodge Southport,NAME REDACTED Travelodge Southport 12.08.2022-15.08.2022 NAME REDACTED,Accomodation,124250,COMU-Communities,JBC-Homelessness
South Ribble Council,http://Statistics.Data.gov.uk\Doc\Local Authority\30UN,12/08/2022,351.48,Travelodge Southport,NAME REDACTED room 2 Travelodge Southport 12.08.2022-15.08.2022 NAME REDACTED,Accomodation,124250,COMU-Communities,JBC-Homelessness
South Ribble Council,http://Statistics.Data.gov.uk\Doc\Local Authority\30UN,12/08/2022,591.60,Premier Inn PR1 2AB,NAME REDACTED Premier Inn PR1 2AB 12.08.2022-16.08.2022 NAME REDACTED,Accomodation,124250,COMU-Communities,JBC-Homelessness
South Ribble Council,http://Statistics.Data.gov.uk\Doc\Local Authority\30UN,15/08/2022,66.28,Travelodge Southport PR8 1RN,NAME REDACTED Travelodge Southport PR8 1RN 15.08.22 - 16.08.22 NAME REDACTED,Accomodation,124050,COMU-Communities,JBC-Homelessness
South Ribble Council,http://Statistics.Data.gov.uk\Doc\Local Authority\30UN,15/08/2022,137.67,Travelodge Southport,NAME REDACTED Travelodge Southport 15.08.2022-17.08.2022 NAME REDACTED,Accomodation,124250,COMU-Communities,JBC-Homelessness
South Ribble Council,http://Statistics.Data.gov.uk\Doc\Local Authority\30UN,17/08/2022,66.28,Travelodge PR1 5NX,NAME REDACTED Travelodge PR1 5NX 17.08.2022-18.08.2022 NAME REDACTED,Accomodation,124250,COMU-Communities,JBC-Homelessness
South Ribble Council,http://Statistics.Data.gov.uk\Doc\Local Authority\30UN,17/08/2022,66.28,Travelodge PR1 5NX,NAME REDACTED Travelodge PR1 5NX 17.08.2022-18.08.2022 NAME REDACTED,Accomodation,124250,COMU-Communities,JBC-Homelessness
South Ribble Council,http://Statistics.Data.gov.uk\Doc\Local Authority\30UN,17/08/2022,73.10,Premier Inn PR1 2AB,NAME REDACTED Premier Inn PR1 2AB 17.08.2022-18.08.2022 NAME REDACTED,Accomodation,124250,COMU-Communities,JBC-Homelessness
South Ribble Council,http://Statistics.Data.gov.uk\Doc\Local Authority\30UN,17/08/2022,347.95,Travelodge PR1 5NX,"NAME REDACTED Travelodge PR1 5NX 17.08.2022-22.08.2022 NAME REDACTED (inname of NAME REDACTED-error, NAME REDACTED pla",Accomodation,124250,COMU-Communities,JBC-Homelessness
South Ribble Council,http://Statistics.Data.gov.uk\Doc\Local Authority\30UN,17/08/2022,361.86,Travelodge PR1 5NX,NAME REDACTED Travelodge PR1 5NX 17.08.2022-22.08.2022 NAME REDACTED Room 2 may be due a part refund as REDACTED booked for,Accomodation,124250,COMU-Communities,JBC-Homelessness
South Ribble Council,http://Statistics.Data.gov.uk\Doc\Local Authority\30UN,22/08/2022,67.30,Travelodge PR6 7JB,NAME REDACTED Travelodge PR6 7JB 22.08.2022 NAME REDACTED,Accomodation,124250,COMU-Communities,JBC-Homelessness
South Ribble Council,http://Statistics.Data.gov.uk\Doc\Local Authority\30UN,22/08/2022,68.00,Premier Inn PR1 2AB,NAME REDACTED Premier Inn PR1 2AB 22.08.2022 NAME REDACTED,Accomodation,124250,COMU-Communities,JBC-Homelessness
South Ribble Council,http://Statistics.Data.gov.uk\Doc\Local Authority\30UN,22/08/2022,68.00,Premier Inn PR1 2AB,NAME REDACTED Premier Inn PR1 2AB 22.08.2022 NAME REDACTED,Accomodation,124250,COMU-Communities,JBC-Homelessness
South Ribble Council,http://Statistics.Data.gov.uk\Doc\Local Authority\30UN,22/08/2022,297.96,Travelodge PR6 7JB,NAME REDACTED Room1 Travelodge PR6 7JB 22.08.2022-26.08.2022 NAME REDACTED,Accomodation,124250,COMU-Communities,JBC-Homelessness
South Ribble Council,http://Statistics.Data.gov.uk\Doc\Local Authority\30UN,22/08/2022,309.87,Travelodge PR6 7JB,NAME REDACTED Room2 Travelodge PR6 7JB 22.08.2022-26.08.2022 NAME REDACTED,Accomodation,124250,COMU-Communities,JBC-Homelessness
South Ribble Council,http://Statistics.Data.gov.uk\Doc\Local Authority\30UN,24/08/2022,73.10,Premier Inn PR1 2AB,NAME REDACTED Premier Inn PR1 2AB 24.08.2022-25.08.2022 NAME REDACTED,Accomodation,124250,COMU-Communities,JBC-Homelessness
South Ribble Council,http://Statistics.Data.gov.uk\Doc\Local Authority\30UN,25/08/2022,68.85,Premier Inn PR1 2AB,NAME REDACTED Premier Inn PR1 2AB 25.08.2022-26.08.2022 NAME REDACTED,Accomodation,124250,COMU-Communities,JBC-Homelessness
South Ribble Council,http://Statistics.Data.gov.uk\Doc\Local Authority\30UN,07/09/2022,381.42,Travelodge PR6 7JB,NAME REDACTED Travelodge Chorley PR6 7JB 7.9.2022-12.9.2022 NAME REDACTED,Accomodation,124250,COMU-Communities,JBC-Homelessness
South Ribble Council,http://Statistics.Data.gov.uk\Doc\Local Authority\30UN,07/09/2022,536.93,Travelodge PR6 7JB,NAME REDACTED room 2 Travelodge Chorley PR6 7JB 7.9.2022-14.9.2022 NAME REDACTED,Accomodation,124250,COMU-Communities,JBC-Homelessness
South Ribble Council,http://Statistics.Data.gov.uk\Doc\Local Authority\30UN,07/09/2022,558.40,Travelodge PR6 7JB,NAME REDACTED Travelodge Chorley PR6 7JB 7.9.2022-14.9.2022 NAME REDACTED,Accomodation,124250,COMU-Communities,JBC-Homelessness
South Ribble Council,http://Statistics.Data.gov.uk\Doc\Local Authority\30UN,20/09/2022,489.53,Travelodge Preston Chorley PR6 7JB,NAME REDACTED Travelodge Preston Chorley PR6 7JB 20.09.22 - 27.09.22 NAME REDACTED,Accomodation,124050,COMU-Communities,JBC-Homelessness
South Ribble Council,http://Statistics.Data.gov.uk\Doc\Local Authority\30UN,20/09/2022,545.00,IBIS Preston North PR3 5JE,NAME REDACTED IBIS Preston North PR3 5JE 20.9.2022-27.9.2022 NAME REDACTED,Accomodation,124250,COMU-Communities,JBC-Homelessness
South Ribble Council,http://Statistics.Data.gov.uk\Doc\Local Authority\30UN,20/09/2022,554.80,Travelodge Chorley PR6 7JB,NAME REDACTED Travelodge Chorley PR6 7JB 20.9.2022-27.9.2022 NAME REDACTED,Accomodation,124250,COMU-Communities,JBC-Homelessness
South Ribble Council,http://Statistics.Data.gov.uk\Doc\Local Authority\30UN,23/09/2022,171.32,Travelodge Blackburn BB3 0DB,NAME REDACTED Travelodge Blackburn BB3 0DB 23.9.2022-26.9.2022 NAME REDACTED,Accomodation,124250,COMU-Communities,JBC-Homelessness
South Ribble Council,http://Statistics.Data.gov.uk\Doc\Local Authority\30UN,23/09/2022,242.72,Travelodge Chorley PR6 7JB,NAME REDACTED Travelodge Chorley PR6 7JB 26.9.2022 - 26.9.2022 NAME REDACTED,Accomodation,124250,COMU-Communities,JBC-Homelessness
South Ribble Council,http://Statistics.Data.gov.uk\Doc\Local Authority\30UN,23/09/2022,242.72,Travelodge Chorley PR6 7JB,NAME REDACTED Travelodge Chorley PR6 7JB 23.9.2022-26.9.2022 NAME REDACTED,Accomodation,124250,COMU-Communities,JBC-Homelessness
South Ribble Council,http://Statistics.Data.gov.uk\Doc\Local Authority\30UN,23/09/2022,242.72,Travelodge Chorley PR6 7JB,NAME REDACTED Travelodge Chorley PR6 7JB 23.9.2022-26.9.2022 NAME REDACTED,Accomodation,124250,COMU-Communities,JBC-Homelessness
South Ribble Council,http://Statistics.Data.gov.uk\Doc\Local Authority\30UN,23/09/2022,242.72,Travelodge Chorley PR6 7JB,NAME REDACTED Travelodge Chorley PR6 7JB 23.9.2022-26.9.2022 NAME REDACTED,Accomodation,124250,COMU-Communities,JBC-Homelessness
South Ribble Council,http://Statistics.Data.gov.uk\Doc\Local Authority\30UN,23/09/2022,242.72,Travelodge Chorley PR6 7JB,NAME REDACTED Travelodge Chorley PR6 7JB 23.9.2022-26.9.2022 NAME REDACTED,Accomodation,124250,COMU-Communities,JBC-Homelessness
South Ribble Council,http://Statistics.Data.gov.uk\Doc\Local Authority\30UN,26/09/2022,-74.80,Premier Inn Preston South PR5 6BZ,Premier Inn refund 26 September 2022,Refund,124250,COMU-Communities,JBC-Homelessness
South Ribble Council,http://Statistics.Data.gov.uk\Doc\Local Authority\30UN,26/09/2022,68.40,Stanley Street Apartments PR1 4AT,NAME REDACTED Stanley Street Apartments PR1 4AT 26.9.2022 NAME REDACTED,Accomodation,124250,COMU-Communities,JBC-Homelessness
South Ribble Council,http://Statistics.Data.gov.uk\Doc\Local Authority\30UN,26/09/2022,69.34,Teavelodge Chorley PR6 7JB,NAME REDACTED Travelodge Chorley PR6 7JB 26.9.2022 NAME REDACTED,Accomodation,124250,COMU-Communities,JBC-Homelessness
South Ribble Council,http://Statistics.Data.gov.uk\Doc\Local Authority\30UN,26/09/2022,69.34,Travelodge Chorley PR6 7JB,NAME REDACTED Travelodge Chorley PR6 7JB 26.9.2022 NAME REDACTED,Accomodation,124250,COMU-Communities,JBC-Homelessness
South Ribble Council,http://Statistics.Data.gov.uk\Doc\Local Authority\30UN,26/09/2022,69.34,Travelodge Chorley PR6 7JB,NAME REDACTED Travelodge Chorley PR6 7JB 26.9.2022 NAME REDACTED,Accomodation,124250,COMU-Communities,JBC-Homelessness
South Ribble Council,http://Statistics.Data.gov.uk\Doc\Local Authority\30UN,26/09/2022,69.34,Travelodge Preston Chorley PR6 7JB,NAME REDACTED Travelodge Preston Chorley PR6 7JB 26.09.22 - 27.09.22 NAME REDACTED,Accomodation,124250,COMU-Communities,JBC-Homelessness
South Ribble Council,http://Statistics.Data.gov.uk\Doc\Local Authority\30UN,26/09/2022,74.80,Premier Inn Preston Central PR1 2AB,NAME REDACTED Premier Inn Preston Central 26.09.22 - 27.09.22 NAME REDACTED,Accomodation,124250,COMU-Communities,JBC-Homelessness
South Ribble Council,http://Statistics.Data.gov.uk\Doc\Local Authority\30UN,26/09/2022,508.90,Travelodge chorley PR6 7JB,NAME REDACTED Travelodge Chorley PR6 7JB 267.9.2022-3.10.2022 NAME REDACTED,Accomodation,124250,COMU-Communities,JBC-Homelessness
South Ribble Council,http://Statistics.Data.gov.uk\Doc\Local Authority\30UN,27/09/2022,518.08,Travelodge chorley PR6 7JB,NAME REDACTED Travelodge Chorley PR6 7JB 27.9.2022-4.10.2022 NAME REDACTED,Accomodation,124250,COMU-Communities,JBC-Homelessness
South Ribble Council,http://Statistics.Data.gov.uk\Doc\Local Authority\30UN,29/09/2022,91.78,Travelodge Chorley PR6 7JB,NAME REDACTED Travelodge Chorley PR6 7JB 29.9.2022 NAME REDACTED,Accomodation,124250,COMU-Communities,JBC-Homelessness
South Ribble Council,http://Statistics.Data.gov.uk\Doc\Local Authority\30UN,29/09/2022,91.78,Travelodge Chorley PR6 7JB,NAME REDACTED Travelodge Chorley PR6 7JB 29.9.2022 NAME REDACTED,Accomodation,124250,COMU-Communities,JBC-Homelessness
South Ribble Council,http://Statistics.Data.gov.uk\Doc\Local Authority\30UN,30/09/2022,232.52,Travelodge Chorley PR6 7JB,NAME REDACTED Travelodge Chorley PR6 7JB 30.9.2022-3.10.2022 NAME REDACTED,Accomodation,124250,COMU-Communities,JBC-Homelessness
South Ribble Council,http://Statistics.Data.gov.uk\Doc\Local Authority\30UN,30/09/2022,232.52,Travelodge chorley PR6 7JB,NAME REDACTED Travelodge Chorley PR6 7JB 30.9.22-3.10.22 NAME REDACTED,Accomodation,124250,COMU-Communities,JBC-Homelessness
South Ribble Council,http://Statistics.Data.gov.uk\Doc\Local Authority\30UN,30/09/2022,497.00,ibis Preston North PR3 5JE,NAME REDACTED ibis Preston North PR3 5JE 27.09.22 - 04.10.22 NAME REDACTED,Accomodation,124050,COMU-Communities,JBC-Homelessness
South Ribble Council,http://Statistics.Data.gov.uk\Doc\Local Authority\30UN,01/07/2022,203.96,Travelodge Preston Central PR1 5NX,NAME REDACTED Travelodge Preston Central PR1 5NX placement 01/07/2022-04/07/2022,Accomodation,124050,COMU-Communities,JBC-Homelessness
South Ribble Council,http://Statistics.Data.gov.uk\Doc\Local Authority\30UN,01/07/2022,203.96,Travelodge Preston Central PR1 5NX,NAME REDACTED Travelodge Preston Central PR1 5NX placement 01/07/2022-04/07/2022,Accomodation,124050,COMU-Communities,JBC-Homelessness
South Ribble Council,http://Statistics.Data.gov.uk\Doc\Local Authority\30UN,01/07/2022,242.00,Premier Inn BB PR5 6BZ,NAME REDACTED placement Premier Inn PR5 6BZ 01/07/2022-04/07/2022,Accomodation,124250,COMU-Communities,JBC-Homelessness
South Ribble Council,http://Statistics.Data.gov.uk\Doc\Local Authority\30UN,01/07/2022,272.29,Travelodge Preston Central PR1 5NX,NAME REDACTED Travelodge Preston Central PR1 5NX 01.07.22 - 05.07.22 NAME REDACTED,Accomodation,124050,COMU-Communities,JBC-Homelessness
South Ribble Council,http://Statistics.Data.gov.uk\Doc\Local Authority\30UN,04/07/2022,59.14,Travelodge PR1 5NX,NAME REDACTED 1 night extra Travelodge PR1 5NX 04/07/2022-05/07/2022,Accomodation,124050,COMU-Communities,JBC-Homelessness
South Ribble Council,http://Statistics.Data.gov.uk\Doc\Local Authority\30UN,04/07/2022,82.45,Holiday Inn Express PR5 8AA,NAME REDACTED HIEX PR5 8AA 04/07/2022-05/07/2022,Accomodation,124250,COMU-Communities,JBC-Homelessness
South Ribble Council,http://Statistics.Data.gov.uk\Doc\Local Authority\30UN,05/07/2022,95.00,HIEX PR5 8AA,NAME REDACTED HIEX PR5 8AA 05/07/2022-06/07/2022,Accomodation,124250,COMU-Communities,JBC-Homelessness
South Ribble Council,http://Statistics.Data.gov.uk\Doc\Local Authority\30UN,05/07/2022,137.67,Travelodge Chorley,NAME REDACTED Travelodge Chorley 05/07/2022-07/07/2022,Accomodation,124050,COMU-Communities,JBC-Homelessness
South Ribble Council,http://Statistics.Data.gov.uk\Doc\Local Authority\30UN,05/07/2022,147.87,Travelodge Preston Central,NAME REDACTED Travelodge Preston Central 05/07/2022-07/07/2022,Accomodation,124050,COMU-Communities,JBC-Homelessness
South Ribble Council,http://Statistics.Data.gov.uk\Doc\Local Authority\30UN,12/07/2022,84.99,Travelodge Preston Central,NAME REDACTED room 2 of 2 Travelodge Preston Central 12/07/2022-13/07/2022,Accomodation,124050,COMU-Communities,JBC-Homelessness
South Ribble Council,http://Statistics.Data.gov.uk\Doc\Local Authority\30UN,12/07/2022,88.38,Travelodge Preston Central,NAME REDACTED room 1 of 2 Travelodge Preston Central 12/07/2022-13/07/2022,Accomodation,124050,COMU-Communities,JBC-Homelessness
South Ribble Council,http://Statistics.Data.gov.uk\Doc\Local Authority\30UN,13/07/2022,195.50,Premier Inn Chorley North PR6 8AB,NAME REDACTED 1 night Premier Inn Chorley North PR6 8AB 13/07/2022-14/07/2022,Accomodation,124050,COMU-Communities,JBC-Homelessness
South Ribble Council,http://Statistics.Data.gov.uk\Doc\Local Authority\30UN,05/08/2022,826.10,Travelodge Preston Chorley PR6 7JB,NAMES REDACTED Travelodge Preston Chorley PR6 7JB 05.08.22 - 08.08.22 NAMES REDACTED = 269.97 NAME REDACTED = 286.16 MA = 269.97 total cost = 826.10,Accomodation,124250,COMU-Communities,JBC-Homelessness
South Ribble Council,http://Statistics.Data.gov.uk\Doc\Local Authority\30UN,10/08/2022,73.10,Premier Inn PR1 2AB,NAME REDACTED Premier Inn PR1 2AB 10.08.2022-11.08.2022 NAME REDACTED,Accomodation,124250,COMU-Communities,JBC-Homelessness
South Ribble Council,http://Statistics.Data.gov.uk\Doc\Local Authority\30UN,11/08/2022,309.01,Travelodge PR1 5NX,NAME REDACTED Travelodge PR1 5NX 11.08.2022-15.08.2022 NAME REDACTED,Accomodation,124250,COMU-Communities,JBC-Homelessness
South Ribble Council,http://Statistics.Data.gov.uk\Doc\Local Authority\30UN,15/08/2022,61.18,Travelodge Preston Central,NAME REDACTED Travelodge Preston Central 15.08.22 - 16.08.22 NAME REDACTED,Accomodation,124250,COMU-Communities,JBC-Homelessness
South Ribble Council,http://Statistics.Data.gov.uk\Doc\Local Authority\30UN,15/08/2022,105.00,SumUp Allied Taxis P,taxi transportation from Allied Taxis,Travel,124250,COMU-Communities,JBC-Homelessness
South Ribble Council,http://Statistics.Data.gov.uk\Doc\Local Authority\30UN,15/08/2022,150.98,Travelodge Southport PR8 1RN,NAME REDACTED Travelodge Southport PR8 1RN 15.08.22 - 17.08.22 NAME REDACTED,Accomodation,124050,COMU-Communities,JBC-Homelessness
South Ribble Council,http://Statistics.Data.gov.uk\Doc\Local Authority\30UN,18/08/2022,71.38,Travelodge PR6 7JB,NAME REDACTED Travelodge PR6 7JB 18.08.2022 NAME REDACTED,Accomodation,124250,COMU-Communities,JBC-Homelessness
South Ribble Council,http://Statistics.Data.gov.uk\Doc\Local Authority\30UN,18/08/2022,306.97,travelodge PR6 7JB,NAME REDACTED Travelodge PR6 7JB 18.08.2022-22.08.32022 NAME REDACTED booked in name of NAME REDACTED but not needed by her,Accomodation,124250,COMU-Communities,JBC-Homelessness
South Ribble Council,http://Statistics.Data.gov.uk\Doc\Local Authority\30UN,31/08/2022,56.08,travelodge PR6 7JB,NAME REDACTED Travelodge PR6 7JB 31.08.2022 NAME REDACTED,Accomodation,124250,COMU-Communities,JBC-Homelessness
South Ribble Council,http://Statistics.Data.gov.uk\Doc\Local Authority\30UN,31/08/2022,141.95,Premier Inn PR1 2AB,NAME REDACTED Premier Inn PR1 2AB 31.08.2022-02.09.2022 NAME REDACTED,Accomodation,124250,COMU-Communities,JBC-Homelessness
South Ribble Council,http://Statistics.Data.gov.uk\Doc\Local Authority\30UN,31/08/2022,142.77,Travelodge PR6 7JB,NAME REDACTED Travelodge PR6 7JB 31.08.2022-02.09.2022 NAME REDACTED,Accomodation,124250,COMU-Communities,JBC-Homelessness
South Ribble Council,http://Statistics.Data.gov.uk\Doc\Local Authority\30UN,31/08/2022,468.93,Travelodge PR6 7JB,NAME REDACTED Travelodge Chorley PR6 7JB Room 1of 2 31.08.2022-07.09.2022 NAME REDACTED,Accomodation,124250,COMU-Communities,JBC-Homelessness
South Ribble Council,http://Statistics.Data.gov.uk\Doc\Local Authority\30UN,31/08/2022,478.30,Travelodge PR6 7JB,NAME REDACTED Travelodge PR6 7JB 31.08.2022-07.08.2022 NAME REDACTED,Accomodation,124250,COMU-Communities,JBC-Homelessness
South Ribble Council,http://Statistics.Data.gov.uk\Doc\Local Authority\30UN,31/08/2022,487.68,Travelodge PR6 7JB,NAME REDACTED Travelodge Chorley PR6 7JB Room 2of 2 31.08.2022-07.09.2022 NAME REDACTED,Accomodation,124250,COMU-Communities,JBC-Homelessness
South Ribble Council,http://Statistics.Data.gov.uk\Doc\Local Authority\30UN,08/09/2022,121.38,holiday inn,NAME REDACTED Holiday Inn Preston 8.9.2022 NAME REDACTED,Accomodation,124250,COMU-Communities,JBC-Homelessness
South Ribble Council,http://Statistics.Data.gov.uk\Doc\Local Authority\30UN,27/09/2022,92.80,Travelodge Chorley PR6 7JB,NAME REDACTED Travelodge Chorley PR6 7JB 27.9.2022 NAME REDACTED,Accomodation,124250,COMU-Communities,JBC-Homelessness
South Ribble Council,http://Statistics.Data.gov.uk\Doc\Local Authority\30UN,06/07/2022,162.50,HMCTS PENNINE,COURT FEES JULY 2022,Court Fees,161200,Revenues Plus,Revenues Plus
South Ribble Council,http://Statistics.Data.gov.uk\Doc\Local Authority\30UN,03/08/2022,113.00,HMCTS PENNINE,COURT FEES,Court Fees,161200,Revenues Plus,Revenues Plus
South Ribble Council,http://Statistics.Data.gov.uk\Doc\Local Authority\30UN,17/08/2022,66.28,Travelodge Preston central PR1 5NX,NAME REDACTED Travelodge Preston Central PR1 17.8.2022 REDACTED placement for one room for one night,Accomodation,124250,COMU-Communities,JBA-Community Involvement
South Ribble Council,http://Statistics.Data.gov.uk\Doc\Local Authority\30UN,22/07/2022,292.50,DVLA,Road tax - Jul 2022. VIN REDACTED,Online Purchase,172840,CDIG-Customer and Digital,JCE-Transport
South Ribble Council,http://Statistics.Data.gov.uk\Doc\Local Authority\30UN,22/07/2022,292.50,DVLA,Road tax Jul 2022 - VIN REDACTED,Online Purchase,172400,CDIG-Customer and Digital,JCE-Transport
South Ribble Council,http://Statistics.Data.gov.uk\Doc\Local Authority\30UN,22/07/2022,292.50,DVLA,Road tax July 2022 - VIN REDACTED,Online Purchase,172400,CDIG-Customer and Digital,JCE-Transport
South Ribble Council,http://Statistics.Data.gov.uk\Doc\Local Authority\30UN,22/07/2022,292.50,DVLA,Road tax Jul 2022 - VIN REDACTED,Online Purchase,172400,CDIG-Customer and Digital,JCE-Transport
South Ribble Council,http://Statistics.Data.gov.uk\Doc\Local Authority\30UN,22/07/2022,292.50,DVLA,Road tax July 2022 - VIN REDACTED,Online Purchase,172600,CDIG-Customer and Digital,JCE-Transport
South Ribble Council,http://Statistics.Data.gov.uk\Doc\Local Authority\30UN,28/07/2022,302.50,DVLA,Road tax July 2022 - VIN REDACTED,Road Tax,172820,CDIG-Customer and Digital,JCE-Transport
South Ribble Council,http://Statistics.Data.gov.uk\Doc\Local Authority\30UN,24/08/2022,202.50,DVLA,Road Tax Aug 22 - VIN REDACTED,Online Purchase,172400,CDIG-Customer and Digital,JCE-Transport
South Ribble Council,http://Statistics.Data.gov.uk\Doc\Local Authority\30UN,24/08/2022,292.50,DVLA,Road Tax Aug 22 - VIN REDACTED,Online Purchase,173800,CDIG-Customer and Digital,JCE-Transport
South Ribble Council,http://Statistics.Data.gov.uk\Doc\Local Authority\30UN,24/08/2022,292.50,DVLA,Road Tax Aug 22 - VIN REDACTED,Online Purchase,172300,CDIG-Customer and Digital,JCE-Transport
South Ribble Council,http://Statistics.Data.gov.uk\Doc\Local Authority\30UN,25/08/2022,302.50,DVLA,Road tax Aug 22 - VIN REDACTED. (reminder truck had been de-fleeted for 14months),Online Purchase,172810,CDIG-Customer and Digital,JCE-Transport
South Ribble Council,http://Statistics.Data.gov.uk\Doc\Local Authority\30UN,25/08/2022,302.50,Post Office,Road Tax Aug 2022 - VIN REDACTED,Road Tax,172820,CDIG-Customer and Digital,JCE-Transport
South Ribble Council,http://Statistics.Data.gov.uk\Doc\Local Authority\30UN,28/09/2022,292.50,DVLA,Road Tax Sept 22 - VIN REDACTED,Online Purchase,172300,CDIG-Customer and Digital,JCE-Transport
South Ribble Council,http://Statistics.Data.gov.uk\Doc\Local Authority\30UN,28/09/2022,292.50,DVLA,Road Tax Sept 2022 - VIN REDACTED,Online Purchase,172300,CDIG-Customer and Digital,JCE-Transport
South Ribble Council,http://Statistics.Data.gov.uk\Doc\Local Authority\30UN,28/09/2022,292.50,DVLA,Road Tax Sept 22 - VIN REDACTED,Online Purchase,114000,CDIG-Customer and Digital,JCE-Transport
South Ribble Council,http://Statistics.Data.gov.uk\Doc\Local Authority\30UN,28/09/2022,292.50,DVLA,Road Tax Sept 22 - VIN REDACTED,Online Purchase,172300,CDIG-Customer and Digital,JCE-Transport
South Ribble Council,http://Statistics.Data.gov.uk\Doc\Local Authority\30UN,28/09/2022,292.50,DVLA,Road Tax Sept 22 - VIN REDACTED,Online Purchase,174300,CDIG-Customer and Digital,JCE-Transport
South Ribble Council,http://Statistics.Data.gov.uk\Doc\Local Authority\30UN,28/09/2022,302.50,DVLA,Road Tax Sept 22 - VIN REDACTED,Online Purchase,172840,CDIG-Customer and Digital,JCE-Transport
South Ribble Council,http://Statistics.Data.gov.uk\Doc\Local Authority\30UN,28/09/2022,512.50,DVLA,Road Tax Sept 22 - VIN REDACTED,Online Purchase,143750,CDIG-Customer and Digital,JCE-Transport
South Ribble Council,http://Statistics.Data.gov.uk\Doc\Local Authority\30UN,20/07/2022,226.00,HMCTS,travellers court hearing costs,Court Fees,142100,GOVE-Governance,JDE-Legal
South Ribble Council,http://Statistics.Data.gov.uk\Doc\Local Authority\30UN,20/07/2022,226.00,HMCTS,court hearing costs - travellers on SRBC lad,Court Fees,142100,GOVE-Governance,JDE-Legal
South Ribble Council,http://Statistics.Data.gov.uk\Doc\Local Authority\30UN,20/07/2022,226.00,HMCTS,Court hearing costs - travellers on SRBC land,Court Fees,142100,GOVE-Governance,JDE-Legal
South Ribble Council,http://Statistics.Data.gov.uk\Doc\Local Authority\30UN,26/07/2022,226.00,HMCTS,court hearing costs - travelllers,Court Fees,142100,GOVE-Governance,JDE-Legal
South Ribble Council,http://Statistics.Data.gov.uk\Doc\Local Authority\30UN,05/09/2022,226.00,HMCTS,Court Costs - HMCTS - 226 Travellers hearing 19.8.22,Court Fees,142100,GOVE-Governance,JDE-Legal
South Ribble Council,http://Statistics.Data.gov.uk\Doc\Local Authority\30UN,05/09/2022,226.00,HMCTS,HMCTS - court costs travellers hearing - 226,Court Fees,142100,GOVE-Governance,JDE-Legal
South Ribble Council,http://Statistics.Data.gov.uk\Doc\Local Authority\30UN,01/07/2022,82.80,AVANTI,TRAIN FOR NAME REDACTED,Rail Fare,171200,CDIG-Customer and Digital,JCB-Revenue and Benefits
South Ribble Council,http://Statistics.Data.gov.uk\Doc\Local Authority\30UN,14/07/2022,-70.99,TRAVELODGE,HOMELESS ACCOMMODATION FOR A RESIDENT AND FAMILY,Accomodation,124050,CDIG-Customer and Digital,JCB-Revenue and Benefits
South Ribble Council,http://Statistics.Data.gov.uk\Doc\Local Authority\30UN,14/07/2022,70.99,TRAVELODGE,HOMELESS ACCOMMODATION FOR A RESIDENT AND FAMILY,Accomodation,124050,CDIG-Customer and Digital,JCB-Revenue and Benefits
South Ribble Council,http://Statistics.Data.gov.uk\Doc\Local Authority\30UN,14/07/2022,953.38,TRAVELODGE,HOMELESS ACCOMMODATION FOR A RESIDENT AND FAMILY,Accomodation,124050,CDIG-Customer and Digital,JCB-Revenue and Benefits
South Ribble Council,http://Statistics.Data.gov.uk\Doc\Local Authority\30UN,02/09/2022,192.48,TRAVELODGE,FOR NAME REDACTED,Accomodation,161000,CDIG-Customer and Digital,JCB-Revenue and Benefits
South Ribble Council,http://Statistics.Data.gov.uk\Doc\Local Authority\30UN,06/07/2022,20.00,Waitrose,Gift card for community volunteer,Store Purchase,114800,COMU-Communities,JBA-Community Involvement
South Ribble Council,http://Statistics.Data.gov.uk\Doc\Local Authority\30UN,12/07/2022,106.91,The Range,"Curtains, poles and voils for refugee re settlement project",Store Purchase,144200,COMU-Communities,JBA-Community Involvement
South Ribble Council,http://Statistics.Data.gov.uk\Doc\Local Authority\30UN,13/07/2022,16.15,Tesco,Youth Council meeting food,Store Purchase,144000,COMU-Communities,JBA-Community Involvement
South Ribble Council,http://Statistics.Data.gov.uk\Doc\Local Authority\30UN,13/07/2022,18.48,Tesco,PASTA club,Store Purchase,113110,COMU-Communities,JBA-Community Involvement
South Ribble Council,http://Statistics.Data.gov.uk\Doc\Local Authority\30UN,13/07/2022,22.44,Tesco,HAF provider meeting,Store Purchase,114800,COMU-Communities,JBA-Community Involvement
South Ribble Council,http://Statistics.Data.gov.uk\Doc\Local Authority\30UN,13/07/2022,71.95,The Range,"Curtains, poles and voils for refugee re settlement project",Store Purchase,144200,COMU-Communities,JBA-Community Involvement
South Ribble Council,http://Statistics.Data.gov.uk\Doc\Local Authority\30UN,14/07/2022,503.95,TTS,HAF SEND equipment,Online Purchase,114850,COMU-Communities,JBA-Community Involvement
South Ribble Council,http://Statistics.Data.gov.uk\Doc\Local Authority\30UN,15/07/2022,8.50,Golden Ball,Food for Longton Live 2022,Store Purchase,114800,COMU-Communities,JBA-Community Involvement
South Ribble Council,http://Statistics.Data.gov.uk\Doc\Local Authority\30UN,15/07/2022,13.00,Pappas Pizza,Food for Longton Live,Store Purchase,114800,COMU-Communities,JBA-Community Involvement
South Ribble Council,http://Statistics.Data.gov.uk\Doc\Local Authority\30UN,15/07/2022,47.35,Morrisons,Longton Live provisions,Store Purchase,114800,COMU-Communities,JBA-Community Involvement
South Ribble Council,http://Statistics.Data.gov.uk\Doc\Local Authority\30UN,16/07/2022,14.50,Pappas Pizza,Food for Longton Live,Store Purchase,114800,COMU-Communities,JBA-Community Involvement
South Ribble Council,http://Statistics.Data.gov.uk\Doc\Local Authority\30UN,18/07/2022,412.75,YPO,SEND equipment,Online Purchase,114850,COMU-Communities,JBA-Community Involvement
South Ribble Council,http://Statistics.Data.gov.uk\Doc\Local Authority\30UN,19/07/2022,85.00,Halfords,Cool box for events,Store Purchase,114800,COMU-Communities,JBA-Community Involvement
South Ribble Council,http://Statistics.Data.gov.uk\Doc\Local Authority\30UN,20/07/2022,15.00,Wellfield High School,Asylum Seeker School Trip,Online Purchase,114800,COMU-Communities,JBA-Community Involvement
South Ribble Council,http://Statistics.Data.gov.uk\Doc\Local Authority\30UN,20/07/2022,60.00,Tesco,Items for Bloomers for judging,Store Purchase,114803,COMU-Communities,JBA-Community Involvement
South Ribble Council,http://Statistics.Data.gov.uk\Doc\Local Authority\30UN,20/07/2022,395.81,Morplan,Rails for school uniform shop,Online Purchase,114800,COMU-Communities,JBA-Community Involvement
South Ribble Council,http://Statistics.Data.gov.uk\Doc\Local Authority\30UN,21/07/2022,33.85,Subway,Items for interviewing,Store Purchase,114800,COMU-Communities,JBA-Community Involvement
South Ribble Council,http://Statistics.Data.gov.uk\Doc\Local Authority\30UN,21/07/2022,75.00,BandQ,Hosepipe for ADDRESS REDACTED,Store Purchase,114801,COMU-Communities,JBA-Community Involvement
South Ribble Council,http://Statistics.Data.gov.uk\Doc\Local Authority\30UN,22/07/2022,45.73,The Range,Household Items,Store Purchase,144200,COMU-Communities,JBA-Community Involvement
South Ribble Council,http://Statistics.Data.gov.uk\Doc\Local Authority\30UN,22/07/2022,60.00,St Catherines,Wardrobes,Store Purchase,144200,COMU-Communities,JBA-Community Involvement
South Ribble Council,http://Statistics.Data.gov.uk\Doc\Local Authority\30UN,22/07/2022,69.00,Northwest Domestics,Russell Hobbs Vacuum Cleaner,Store Purchase,144200,COMU-Communities,JBA-Community Involvement
South Ribble Council,http://Statistics.Data.gov.uk\Doc\Local Authority\30UN,25/07/2022,20.85,Tesco,School uniform bank essentials,Store Purchase,114800,COMU-Communities,JBA-Community Involvement
South Ribble Council,http://Statistics.Data.gov.uk\Doc\Local Authority\30UN,27/07/2022,16.20,The Folly,Leyland in Bloom judges lunch,Store Purchase,114800,COMU-Communities,JBA-Community Involvement
South Ribble Council,http://Statistics.Data.gov.uk\Doc\Local Authority\30UN,28/07/2022,25.16,Subway,School uniform shop volunteers support,Store Purchase,114800,COMU-Communities,JBA-Community Involvement
South Ribble Council,http://Statistics.Data.gov.uk\Doc\Local Authority\30UN,11/08/2022,14.00,Tesco,In Bloom judges gifts,Store Purchase,114800,COMU-Communities,JBA-Community Involvement
South Ribble Council,http://Statistics.Data.gov.uk\Doc\Local Authority\30UN,16/08/2022,0.01,MandJ Distributors,Dr Bike items (invoice does not match credit card spend by 1p),Online Purchase,113100,COMU-Communities,JBA-Community Involvement
South Ribble Council,http://Statistics.Data.gov.uk\Doc\Local Authority\30UN,16/08/2022,64.99,Travelodge PR1 5NX,NAME REDACTED Travelodge PR1 5NX 16.08.2022-17.08.2022 NAME REDACTED,Accomodation,124250,COMU-Communities,JBA-Community Involvement
South Ribble Council,http://Statistics.Data.gov.uk\Doc\Local Authority\30UN,16/08/2022,67.58,Travelodge PR1 5NX,NAME REDACTED Travelodge PR1 5NX 16.08.2022-17.08.2022 NAME REDACTED,Accomodation,124250,COMU-Communities,JBA-Community Involvement
South Ribble Council,http://Statistics.Data.gov.uk\Doc\Local Authority\30UN,16/08/2022,198.86,Travelodge PR1 5NX,NAME REDACTED Travelodge PR1 5NX 16.08.2022-19.08.2022 NAME REDACTED,Accomodation,124250,COMU-Communities,JBA-Community Involvement
South Ribble Council,http://Statistics.Data.gov.uk\Doc\Local Authority\30UN,16/08/2022,326.29,MandJ Distributors,Dr Bike parts,Online Purchase,113100,COMU-Communities,JBA-Community Involvement
South Ribble Council,http://Statistics.Data.gov.uk\Doc\Local Authority\30UN,16/08/2022,541.00,Premier Inn PR1 2AB,NAME REDACTED Premier Inn PR1 2AB 16.08.2022-23.08.2022 NAME REDACTED,Accomodation,124250,COMU-Communities,JBA-Community Involvement
South Ribble Council,http://Statistics.Data.gov.uk\Doc\Local Authority\30UN,16/08/2022,783.96,BIKEABILITY TRUST,Bikeability resources,Online Purchase,113100,COMU-Communities,JBA-Community Involvement
South Ribble Council,http://Statistics.Data.gov.uk\Doc\Local Authority\30UN,17/08/2022,50.00,ARGOS,Gates x2,Online Purchase,144200,COMU-Communities,JBA-Community Involvement
South Ribble Council,http://Statistics.Data.gov.uk\Doc\Local Authority\30UN,18/08/2022,2.09,Spar,Cards,Store Purchase,114800,COMU-Communities,JBA-Community Involvement
South Ribble Council,http://Statistics.Data.gov.uk\Doc\Local Authority\30UN,19/08/2022,-25.00,ARGOS,Refund for one of the baby gates,Store Purchase,144200,COMU-Communities,JBA-Community Involvement
South Ribble Council,http://Statistics.Data.gov.uk\Doc\Local Authority\30UN,19/08/2022,35.00,ARGOS,Baby gate,Online Purchase,144200,COMU-Communities,JBA-Community Involvement
South Ribble Council,http://Statistics.Data.gov.uk\Doc\Local Authority\30UN,23/08/2022,18.85,Tesco,Items for cost of living conference,Store Purchase,114800,COMU-Communities,JBA-Community Involvement
South Ribble Council,http://Statistics.Data.gov.uk\Doc\Local Authority\30UN,24/08/2022,10.98,The Range,Items for refugees,Store Purchase,144200,COMU-Communities,JBA-Community Involvement
South Ribble Council,http://Statistics.Data.gov.uk\Doc\Local Authority\30UN,25/08/2022,370.95,Travelodge PR6 7JB,NAME REDACTED room1 Travelodge PR6 7JB 26.08.2022-31.08.2022 NAME REDACTED,Accomodation,124250,COMU-Communities,JBA-Community Involvement
South Ribble Council,http://Statistics.Data.gov.uk\Doc\Local Authority\30UN,25/08/2022,385.78,Travelodge PR6 7JB,NAME REDACTED room2 Travelodge PR6 7JB 26.08.2022-31.08.2022 NAME REDACTED,Accomodation,124250,COMU-Communities,JBA-Community Involvement
South Ribble Council,http://Statistics.Data.gov.uk\Doc\Local Authority\30UN,26/08/2022,292.40,Premier Inn PR1 2AB,NAME REDACTED Premier Inn OR1 2AB 26.08.2022-30.08.2022 NAME REDACTED,Accomodation,124250,COMU-Communities,JBA-Community Involvement
South Ribble Council,http://Statistics.Data.gov.uk\Doc\Local Authority\30UN,26/08/2022,333.48,Travelodge PR1 5NX,NAME REDACTED Travelodge PR1 5NX 26.08.2022-31.08.2022 NAME REDACTED,Accomodation,124250,COMU-Communities,JBA-Community Involvement
South Ribble Council,http://Statistics.Data.gov.uk\Doc\Local Authority\30UN,26/08/2022,343.69,Travelodge Chorley,NAME REDACTED Travelodge Chorley 26.08.2022-30.08.2022 NAME REDACTED,Accomodation,124250,COMU-Communities,JBA-Community Involvement
South Ribble Council,http://Statistics.Data.gov.uk\Doc\Local Authority\30UN,26/08/2022,370.95,Travelodge PR6 7JB,NAME REDACTED room1 Travelodge PR6 7JB 26.08.2022-31.08.2022 NAME REDACTED,Accomodation,124250,COMU-Communities,JBA-Community Involvement
South Ribble Council,http://Statistics.Data.gov.uk\Doc\Local Authority\30UN,26/08/2022,385.78,Travelodge PR6 7JB,NAME REDACTED room2 Travelodge PR6 7JB 26.08.2022-31.08.2022 NAME REDACTED,Accomodation,124250,COMU-Communities,JBA-Community Involvement
South Ribble Council,http://Statistics.Data.gov.uk\Doc\Local Authority\30UN,26/08/2022,433.44,Travelodge PR6 7JB,NAME REDACTED Travelodge PR6 7JB 26.08.2022-31.08.2022 NAME REDACTED,Accomodation,124250,COMU-Communities,JBA-Community Involvement
South Ribble Council,http://Statistics.Data.gov.uk\Doc\Local Authority\30UN,02/09/2022,6.75,Tesco,Items for PASTA club,Store Purchase,113110,COMU-Communities,JBA-Community Involvement
South Ribble Council,http://Statistics.Data.gov.uk\Doc\Local Authority\30UN,02/09/2022,100.00,Tesco,Items for PASTA club,Store Purchase,113110,COMU-Communities,JBA-Community Involvement
South Ribble Council,http://Statistics.Data.gov.uk\Doc\Local Authority\30UN,02/09/2022,100.00,ARGOS,Items for PASTA club,Store Purchase,113110,COMU-Communities,JBA-Community Involvement
South Ribble Council,http://Statistics.Data.gov.uk\Doc\Local Authority\30UN,02/09/2022,101.56,Range,Items for PASTA club,Store Purchase,113110,COMU-Communities,JBA-Community Involvement
South Ribble Council,http://Statistics.Data.gov.uk\Doc\Local Authority\30UN,07/09/2022,2.85,Post Office,Postage,Store Purchase,114800,COMU-Communities,JBA-Community Involvement
South Ribble Council,http://Statistics.Data.gov.uk\Doc\Local Authority\30UN,13/09/2022,8.75,Tesco Cafe,Items for meeting,Store Purchase,114800,COMU-Communities,JBA-Community Involvement
South Ribble Council,http://Statistics.Data.gov.uk\Doc\Local Authority\30UN,13/09/2022,67.53,Asda,Items for PASTA club,Store Purchase,113110,COMU-Communities,JBA-Community Involvement
South Ribble Council,http://Statistics.Data.gov.uk\Doc\Local Authority\30UN,14/09/2022,28.45,Tesco,Items for event,Store Purchase,114800,COMU-Communities,JBA-Community Involvement
South Ribble Council,http://Statistics.Data.gov.uk\Doc\Local Authority\30UN,21/09/2022,59.00,Morplan,Pop up coat shop items,Online Purchase,114800,COMU-Communities,JBA-Community Involvement
South Ribble Council,http://Statistics.Data.gov.uk\Doc\Local Authority\30UN,27/09/2022,151.96,MJ Distributors,Dr Bike supplies,Online Purchase,113100,COMU-Communities,JBA-Community Involvement
South Ribble Council,http://Statistics.Data.gov.uk\Doc\Local Authority\30UN,28/09/2022,8.25,Tesco,Items for Youth Council meeting,Store Purchase,114800,COMU-Communities,JBA-Community Involvement
South Ribble Council,http://Statistics.Data.gov.uk\Doc\Local Authority\30UN,29/09/2022,7.78,Morrisons,Items for launch event,Store Purchase,114800,COMU-Communities,JBA-Community Involvement
South Ribble Council,http://Statistics.Data.gov.uk\Doc\Local Authority\30UN,30/09/2022,42.00,UK Table Tennis,Replacement parts for ping pong tables,Online Purchase,113100,COMU-Communities,JBA-Community Involvement
South Ribble Council,http://Statistics.Data.gov.uk\Doc\Local Authority\30UN,20/07/2022,14.90,Meta,Meta Facebook Ads,Online Purchase,115250,POLY-Policy,JFA-Communications and Visitor
South Ribble Council,http://Statistics.Data.gov.uk\Doc\Local Authority\30UN,20/07/2022,16.61,Meta,Meta Facebook ads (SR In Bloom),Online Purchase,114800,POLY-Policy,JFA-Communications and Visitor
South Ribble Council,http://Statistics.Data.gov.uk\Doc\Local Authority\30UN,20/07/2022,16.99,Meta,Meta Facebook Ad (SR Biodiversity),Online Purchase,112400,POLY-Policy,JFA-Communications and Visitor
South Ribble Council,http://Statistics.Data.gov.uk\Doc\Local Authority\30UN,20/07/2022,60.43,Meta,Meta Facebook Ads (HAF),Online Purchase,114850,POLY-Policy,JFA-Communications and Visitor
South Ribble Council,http://Statistics.Data.gov.uk\Doc\Local Authority\30UN,20/07/2022,191.07,Meta,Meta Facebook Ads (SR Leisure),Online Purchase,115250,POLY-Policy,JFA-Communications and Visitor
South Ribble Council,http://Statistics.Data.gov.uk\Doc\Local Authority\30UN,25/07/2022,14.25,Meta,Meta Facebook Ads (HAF),Online Purchase,114850,POLY-Policy,JFA-Communications and Visitor
South Ribble Council,http://Statistics.Data.gov.uk\Doc\Local Authority\30UN,25/07/2022,17.62,Meta,Meta Facebook Ads (SR Leisure),Online Purchase,115250,POLY-Policy,JFA-Communications and Visitor
South Ribble Council,http://Statistics.Data.gov.uk\Doc\Local Authority\30UN,25/07/2022,35.29,Meta,Meta Facebook Ads ,Online Purchase,115250,POLY-Policy,JFA-Communications and Visitor
South Ribble Council,http://Statistics.Data.gov.uk\Doc\Local Authority\30UN,25/08/2022,84.69,Meta,Facebook Ads,Online Purchase,115250,POLY-Policy,JFA-Communications and Visitor
South Ribble Council,http://Statistics.Data.gov.uk\Doc\Local Authority\30UN,25/08/2022,184.94,Meta,Facebook Ads South Ribble,Online Purchase,115250,POLY-Policy,JFA-Communications and Visitor
South Ribble Council,http://Statistics.Data.gov.uk\Doc\Local Authority\30UN,13/09/2022,18.00,Gov.uk,DBS Check,Online Purchase,115250,POLY-Policy,JFA-Communications and Visitor
South Ribble Council,http://Statistics.Data.gov.uk\Doc\Local Authority\30UN,22/09/2022,8.92,Meta,Meta Facebook Ads (HAF),Online Purchase,114850,POLY-Policy,JFA-Communications and Visitor
South Ribble Council,http://Statistics.Data.gov.uk\Doc\Local Authority\30UN,22/09/2022,14.66,Meta,Meta Facebook Ads ,Online Purchase,115250,POLY-Policy,JFA-Communications and Visitor
South Ribble Council,http://Statistics.Data.gov.uk\Doc\Local Authority\30UN,22/09/2022,76.11,Meta,Meta Facebook Ads (SR Leisure),Online Purchase,115250,POLY-Policy,JFA-Communications and Visitor
South Ribble Council,http://Statistics.Data.gov.uk\Doc\Local Authority\30UN,22/09/2022,200.31,Meta,Meta Facebook Ads (Taste of Leyland),Online Purchase,114100,POLY-Policy,JFA-Communications and Visitor
South Ribble Council,http://Statistics.Data.gov.uk\Doc\Local Authority\30UN,25/09/2022,27.55,Meta,Meta Facebook Ads,Online Purchase,115250,POLY-Policy,JFA-Communications and Visitor
South Ribble Council,http://Statistics.Data.gov.uk\Doc\Local Authority\30UN,27/09/2022,572.95,ARGOS,Argos Apple IPad Air,Online Purchase,115250,POLY-Policy,JFA-Communications and Visitor
South Ribble Council,http://Statistics.Data.gov.uk\Doc\Local Authority\30UN,18/08/2022,30.00,ARGOS,Lamp for REDACTED,Store Purchase,143750,GOVE-Governance,JDC-Corporate Support
South Ribble Council,http://Statistics.Data.gov.uk\Doc\Local Authority\30UN,18/08/2022,48.00,Sainsburys,Cushions for REDACTED,Store Purchase,143750,GOVE-Governance,JDC-Corporate Support
South Ribble Council,http://Statistics.Data.gov.uk\Doc\Local Authority\30UN,08/09/2022,681.96,EasyJet,Flights to Bilbao for NAMES REDACTED,Travel,143700,GOVE-Governance,JDC-Corporate Support
South Ribble Council,http://Statistics.Data.gov.uk\Doc\Local Authority\30UN,09/09/2022,88.80,THOMSON REUTERS,REDACTED Minor Works Contract,Online Purchase,207094,GOVE-Governance,JDC-Corporate Support
South Ribble Council,http://Statistics.Data.gov.uk\Doc\Local Authority\30UN,15/09/2022,181.50,Lancaster,Training course,Online Purchase,112100,GOVE-Governance,JDC-Corporate Support
South Ribble Council,http://Statistics.Data.gov.uk\Doc\Local Authority\30UN,27/09/2022,92.80,Travel Lodge,NAME REDACTED - Accommodation,Accomodation,124050,GOVE-Governance,JDC-Corporate Support
South Ribble Council,http://Statistics.Data.gov.uk\Doc\Local Authority\30UN,28/09/2022,69.99,Travel Lodge,NAME REDACTED - Accommodation,Accomodation,124050,GOVE-Governance,JDC-Corporate Support
South Ribble Council,http://Statistics.Data.gov.uk\Doc\Local Authority\30UN,28/09/2022,72.78,Travel Lodge,NAME REDACTED - Accommodation,Accomodation,124050,GOVE-Governance,JDC-Corporate Support
South Ribble Council,http://Statistics.Data.gov.uk\Doc\Local Authority\30UN,09/07/2022,"2,762.44",Microsoft,Microsoft,Online Purchase,133000,CDIG-Customer and Digital,JCC-Information Services
South Ribble Council,http://Statistics.Data.gov.uk\Doc\Local Authority\30UN,13/07/2022,27.00,EE,3 9 top up,Online Purchase,133000,CDIG-Customer and Digital,JCC-Information Services
South Ribble Council,http://Statistics.Data.gov.uk\Doc\Local Authority\30UN,16/07/2022,79.00,Apple,Apple DEP Licence fee,Online Purchase,133000,CDIG-Customer and Digital,JCC-Information Services
South Ribble Council,http://Statistics.Data.gov.uk\Doc\Local Authority\30UN,24/07/2022,215.82,Zoom Video Communications,15 x Zoom licences,Online Purchase,133000,CDIG-Customer and Digital,JCC-Information Services
South Ribble Council,http://Statistics.Data.gov.uk\Doc\Local Authority\30UN,09/08/2022,"2,943.65",Microsoft,Microsoft storage,Online Purchase,133000,CDIG-Customer and Digital,JCC-Information Services
South Ribble Council,http://Statistics.Data.gov.uk\Doc\Local Authority\30UN,11/08/2022,40.20,Amazon,Scale rulers,Online Purchase,133000,CDIG-Customer and Digital,JCC-Information Services
South Ribble Council,http://Statistics.Data.gov.uk\Doc\Local Authority\30UN,13/08/2022,27.00,EE,3 x 9 Top up,Online Purchase,133000,CDIG-Customer and Digital,JCC-Information Services
South Ribble Council,http://Statistics.Data.gov.uk\Doc\Local Authority\30UN,15/08/2022,"1,269.45",Amazon,85 x iPad and 50 x iPhone screen protectors,Online Purchase,133000,CDIG-Customer and Digital,JCC-Information Services
South Ribble Council,http://Statistics.Data.gov.uk\Doc\Local Authority\30UN,19/08/2022,16.20,Freethought,Freethought SSL certs,Online Purchase,133000,CDIG-Customer and Digital,JCC-Information Services
South Ribble Council,http://Statistics.Data.gov.uk\Doc\Local Authority\30UN,19/08/2022,24.00,Freethought,SSL CErt,Online Purchase,133000,CDIG-Customer and Digital,JCC-Information Services
South Ribble Council,http://Statistics.Data.gov.uk\Doc\Local Authority\30UN,19/08/2022,24.00,Freethought,SSL Certs,Online Purchase,133000,CDIG-Customer and Digital,JCC-Information Services
South Ribble Council,http://Statistics.Data.gov.uk\Doc\Local Authority\30UN,24/08/2022,215.82,Zoom Video Communications,ChargeName: Standard Pro Monthly Quantity: 15 UnitPrice: GBP11.99,Online Purchase,133000,CDIG-Customer and Digital,JCC-Information Services
South Ribble Council,http://Statistics.Data.gov.uk\Doc\Local Authority\30UN,09/09/2022,"2,978.90",Microsoft,Microsoft Azure Sept,Online Purchase,133000,CDIG-Customer and Digital,JCC-Information Services
South Ribble Council,http://Statistics.Data.gov.uk\Doc\Local Authority\30UN,13/09/2022,27.00,EE,3 x Top up 9,Online Purchase,133000,CDIG-Customer and Digital,JCC-Information Services
South Ribble Council,http://Statistics.Data.gov.uk\Doc\Local Authority\30UN,16/09/2022,7.50,Freethought,SSL Certs,Online Purchase,133000,CDIG-Customer and Digital,JCC-Information Services
South Ribble Council,http://Statistics.Data.gov.uk\Doc\Local Authority\30UN,16/09/2022,64.20,Freethought,SSL Certificates,Online Purchase,133000,CDIG-Customer and Digital,JCC-Information Services
South Ribble Council,http://Statistics.Data.gov.uk\Doc\Local Authority\30UN,17/09/2022,175.89,Amazon,Amazon cases and SP`s,Online Purchase,133000,CDIG-Customer and Digital,JCC-Information Services
South Ribble Council,http://Statistics.Data.gov.uk\Doc\Local Authority\30UN,24/09/2022,215.82,Zoom Video Communications,ChargeName: Standard Pro Monthly Quantity: 15 UnitPrice: GBP11.99,Online Purchase,133000,CDIG-Customer and Digital,JCC-Information Services
South Ribble Council,http://Statistics.Data.gov.uk\Doc\Local Authority\30UN,06/09/2022,528.28,Travelodge Preston Chorley PR6 7JB,NAME REDACTED Travelodge Preston Chorley 06.09.22 - 13.09.22 NAME REDACTED,Accomodation,124050,COMU-Communities,JBC-Homelessness
South Ribble Council,http://Statistics.Data.gov.uk\Doc\Local Authority\30UN,22/09/2022,66.30,Premier Inn Preston South (Craven Drive),NAME REDACTED Premier Inn Preston South PR5 6BZ 22.09.2022 - 23.09.2022 NAME REDACTED,Accomodation,124250,COMU-Communities,JBC-Homelessness
South Ribble Council,http://Statistics.Data.gov.uk\Doc\Local Authority\30UN,22/09/2022,66.30,P Inn PR5 6BZ,NAME REDACTED Premier Inn PR5 6BZ 22.9.2022 NAME REDACTED,Accomodation,124250,COMU-Communities,JBC-Homelessness
South Ribble Council,http://Statistics.Data.gov.uk\Doc\Local Authority\30UN,27/09/2022,77.50,Travelodge Chorley PR6 7JB,NAME REDACTED Travelodge Chorley PR6 7JB 27.9.2022,Accomodation,124250,COMU-Communities,JBC-Homelessness
South Ribble Council,http://Statistics.Data.gov.uk\Doc\Local Authority\30UN,27/09/2022,77.50,Travelodge Chorley PR6 7JB,NAME REDACTED Travelodge Chorley PR6 7JB 27.9.2022 NAME REDACTED,Accomodation,124250,COMU-Communities,JBC-Homelessness
South Ribble Council,http://Statistics.Data.gov.uk\Doc\Local Authority\30UN,27/09/2022,77.50,Travelodge Chorley PR6 7JB,NAME REDACTED Travelodge Chorley PR6 7JB 27.9.2022 NAME REDACTED,Accomodation,124250,COMU-Communities,JBC-Homelessness
South Ribble Council,http://Statistics.Data.gov.uk\Doc\Local Authority\30UN,27/09/2022,92.80,Travelodge Chorley PR6 7JB,NAME REDACTED Travelodge Chorley PR6 7JB 27.9.2022,Accomodation,124250,COMU-Communities,JBC-Homelessness
